bitfinex/quotes_ETHUSD_20220220
["timestamp","ask_amount","ask_price","bid_price","bid_amount"]
[1645396271941,18.05032272,2620.2,2620.1,14.0897631]
[1645396272339,18.05032272,2620.2,2620.1,14.08668838]
[1645396272340,18.08579702,2620.2,2620.1,14.08668838]
[1645396274777,13.08579702,2620.2,2620.1,14.08668838]
[1645396274978,18.08579702,2620.2,2620.1,14.08668838]
[1645396275178,19.05653188,2620.2,2620.1,14.08668838]
[1645396275380,18.08579702,2620.2,2620.1,14.08668838]
[1645396275581,19.05653282,2620.2,2620.1,14.08668838]
[1645396275979,13.08579702,2620.2,2620.1,14.08668838]
[1645396276190,18.08579702,2620.2,2620.1,14.08668838]
[1645396277038,19.05653272,2620.2,2620.1,14.08668838]
[1645396278443,18.08579702,2620.2,2620.1,14.08668838]
[1645396279242,13.08579702,2620.2,2620.1,14.08668838]
[1645396282187,18.08579702,2620.2,2620.1,14.08668838]
[1645396282385,13.08579702,2620.2,2620.1,14.08668838]
[1645396282585,19.53437084,2620.2,2620.1,14.08668838]
[1645396282988,19.83437084,2620.2,2620.1,14.08668838]
[1645396283189,19.53437084,2620.2,2620.1,14.08668838]
[1645396283590,18.08579702,2620.2,2620.1,14.08668838]
[1645396283787,19.53437084,2620.2,2620.1,14.08668838]
[1645396284348,18.08579702,2620.2,2620.1,14.08668838]
[1645396284545,18.08579702,2620.2,2620.1,14.08533273]
[1645396285146,20.13437084,2620.2,2620.1,14.08533273]
[1645396285545,18.68579702,2620.2,2620.1,14.08533273]
[1645396289187,20.13437084,2620.2,2620.1,14.08533273]
[1645396292431,18.68579702,2620.2,2620.1,14.08533273]
[1645396292830,20.13437084,2620.2,2620.1,14.08533273]
[1645396297379,19.53437084,2620.2,2620.1,14.08533273]
[1645396297583,19.83437084,2620.2,2620.1,14.08533273]
[1645396297783,20.13437084,2620.2,2620.1,14.08533273]
[1645396298083,18.68579702,2620.2,2620.1,14.08533273]
[1645396298783,20.14123272,2620.2,2620.1,14.08533273]
[1645396299233,18.68579702,2620.2,2620.1,14.08533273]
[1645396300835,20.60831811,2620.2,2620.1,11.48946467]
[1645396301036,20.60831811,2620.2,2620.1,7.6307]
[1645396301735,18.68579702,2620.2,2620.1,7.6307]
[1645396302536,20.60831811,2620.2,2620.1,7.6307]
[1645396307539,18.95831811,2620.2,2620.1,7.6307]
[1645396308137,18.95831811,2620.2,2620.1,7.3807]
[1645396308737,19.55831811,2620.2,2620.1,7.3807]
[1645396308936,20.55831811,2620.2,2620.1,7.3807]
[1645396310340,20.50831811,2620.2,2620.1,7.3807]
[1645396311985,12.03579702,2620.2,2620.1,7.3807]
[1645396313282,13.63579702,2620.2,2620.1,7.3807]
[1645396314086,17.13579702,2620.2,2620.1,7.3807]
[1645396314944,13.63579702,2620.2,2620.1,7.3807]
[1645396316145,14.25863301,2620.2,2620.1,7.3807]
[1645396316545,13.63579702,2620.2,2620.1,7.3807]
[1645396316746,15.57742546,2620.2,2620.1,7.3807]
[1645396316951,13.03579702,2620.2,2620.1,7.3807]
[1645396317147,13.63579702,2620.2,2620.1,7.3807]
[1645396318284,13.63579702,2620.2,2620.1,4.78482331]
[1645396318486,15.57770361,2620.2,2620.1,4.78482331]
[1645396319086,15.57770361,2620.2,2620.0,0.00660785]
[1645396319290,4.08890659,2620.1,2620.0,0.00660785]
[1645396319487,4.64190659,2620.1,2620.0,0.00660785]
[1645396319689,3.76796292,2620.1,2620.0,0.00660785]
[1645396320687,5.22444849,2620.1,2620.0,0.00660785]
[1645396320888,3.76796292,2620.1,2620.0,0.00660785]
[1645396321189,5.22444696,2620.1,2620.0,0.00660785]
[1645396322636,5.26001418,2620.1,2620.0,0.001]
[1645396323041,4.26001418,2620.1,2620.0,0.001]
[1645396324239,3.40353014,2620.1,2620.0,0.001]
[1645396324435,4.40353014,2620.1,2620.0,0.001]
[1645396324735,5.86054393,2620.1,2620.0,0.001]
[1645396326084,4.26054393,2620.1,2620.0,0.001]
[1645396327383,5.59593417,2620.1,2620.0,0.001]
[1645396327783,4.13892038,2620.1,2620.0,0.001]
[1645396328484,4.43892038,2620.1,2620.0,0.001]
[1645396329949,3.83892038,2620.1,2620.0,0.001]
[1645396330150,4.43892038,2620.1,2619.8,0.00182196]
[1645396330350,1.147,2619.9,2619.8,0.00182196]
[1645396330554,1.7,2619.9,2619.8,0.00182196]
[1645396330755,3.06796292,2619.9,2619.8,0.00182196]
[1645396330949,2.83896292,2619.9,2619.8,0.00182196]
[1645396331151,3.76796292,2619.9,2619.8,0.00182196]
[1645396332453,4.06796292,2619.9,2619.8,0.00182196]
[1645396332651,4.06796292,2619.9,2619.8,0.00503134]
[1645396332851,3.76796292,2619.9,2619.8,0.00503134]
[1645396333103,4.06796292,2619.9,2619.8,0.00503134]
[1645396333500,3.76796292,2619.9,2619.8,0.00503134]
[1645396333701,4.06796292,2619.9,2619.8,0.00503134]
[1645396334103,2.76796292,2619.9,2619.8,0.00503134]
[1645396334300,3.76796292,2619.9,2619.8,0.00503134]
[1645396334501,5.2252142,2619.9,2619.8,0.00503134]
[1645396335302,3.76796292,2619.9,2619.8,0.00503134]
[1645396335501,5.2252142,2619.9,2619.8,0.00503134]
[1645396336737,3.76796292,2619.9,2619.8,0.00503134]
[1645396337238,5.2252142,2619.9,2619.8,0.00503134]
[1645396337641,5.2735584,2619.9,2619.8,0.00503134]
[1645396337838,4.11630712,2619.9,2619.8,0.00503134]
[1645396338644,5.5735584,2619.9,2619.8,0.00503134]
[1645396339040,4.11630712,2619.9,2619.8,0.00503134]
[1645396340038,4.11630712,2619.9,2619.5,7.24099344]
[1645396340238,2.11895358,2619.7,2619.5,7.24099344]
[1645396340688,1.68098146,2619.6,2619.5,7.24099344]
[1645396340888,3.21496292,2619.6,2619.5,7.24099344]
[1645396341392,3.21496292,2619.6,2618.7,1.198]
[1645396342390,3.21496292,2619.6,2618.8,7.8462]
[1645396342595,3.21344629,2619.6,2618.8,7.8462]
[1645396344331,3.21344629,2619.6,2619.3,8.55005835]
[1645396344734,4.18539987,2619.6,2619.3,8.55005835]
[1645396345034,1.147,2619.4,2619.3,8.55005835]
[1645396345236,1.147,2619.4,2619.3,8.2985]
[1645396345834,1.67946483,2619.4,2619.3,8.2985]
[1645396346236,2.21344629,2619.4,2619.3,8.2985]
[1645396347035,2.21344629,2619.4,2619.3,9.92092116]
[1645396347436,2.21344629,2619.4,2619.3,9.92572254]
[1645396347437,2.3105937,2619.4,2619.3,9.92572254]
[1645396352739,2.3105937,2619.4,2619.3,9.92092116]
[1645396353538,2.3105937,2619.4,2619.3,8.2985]
[1645396363791,2.3105937,2619.4,2619.3,9.92087795]
[1645396365195,2.3105937,2619.4,2619.3,8.2985]
[1645396365991,2.3105937,2619.4,2619.3,8.2972278]
[1645396389238,2.3105937,2619.4,2619.3,9.91960004]
[1645396390042,2.3105937,2619.4,2619.3,10.21960004]
[1645396390441,2.3105937,2619.4,2619.3,9.91960004]
[1645396390644,2.3105937,2619.4,2619.3,8.29630536]
[1645396393194,2.3105937,2619.4,2619.3,9.91864922]
[1645396393891,2.3105937,2619.4,2619.3,8.29630536]
[1645396395193,2.3105937,2619.4,2619.3,9.91866581]
[1645396397439,2.3105937,2619.4,2619.3,8.29630536]
[1645396402696,2.3105937,2619.4,2619.3,9.9186672]
[1645396403097,2.3105937,2619.4,2619.3,8.29630536]
[1645396403995,2.3105937,2619.4,2619.3,9.91867457]
[1645396407447,2.31325487,2619.4,2619.3,9.91867457]
[1645396407846,2.31325487,2619.4,2619.3,10.06547975]
[1645396408090,1.97325487,2619.4,2619.3,10.06547975]
[1645396410807,1.92325487,2619.4,2619.3,10.06547975]
[1645396411191,1.92325487,2619.4,2619.3,1.76917439]
[1645396411397,1.92325487,2619.4,2619.3,0.14680518]
[1645396412240,2.92325487,2619.4,2619.3,0.14680518]
[1645396412437,1.9277812,2619.4,2619.3,0.15102098]
[1645396412738,2.9277812,2619.4,2619.3,0.15102098]
[1645396412937,3.1184812,2619.4,2619.3,0.15102098]
[1645396413235,4.09043478,2619.4,2619.3,0.15102098]
[1645396413641,2.1184812,2619.4,2619.3,0.15102098]
[1645396413841,1.9277812,2619.4,2619.3,0.15102098]
[1645396415041,1.9277812,2619.4,2619.2,0.59117812]
[1645396415042,1.9277812,2619.4,2619.2,0.49092711]
[1645396415238,1.9277812,2619.4,2619.2,0.49219932]
[1645396415493,0.86133491,2619.4,2619.2,0.49219932]
[1645396415695,1.87194985,2619.3,2619.2,0.49219932]
[1645396416095,1.87194985,2619.3,2619.2,0.49092711]
[1645396416296,1.87194985,2619.3,2619.2,2.11336095]
[1645396417596,1.95001767,2619.3,2619.2,2.11336095]
[1645396421040,1.95001767,2619.3,2619.2,2.1068444]
[1645396422541,1.95001767,2619.3,2619.2,2.11527051]
[1645396424491,2.45001767,2619.3,2619.2,2.11527051]
[1645396436141,2.45001767,2619.3,2619.2,2.11099251]
[1645396437541,2.45001767,2619.3,2619.2,2.11086902]
[1645396438183,2.45001767,2619.3,2619.2,1.86086902]
[1645396442339,2.45001767,2619.3,2619.2,1.86489364]
[1645396445343,0.71947315,2619.3,2619.2,1.86489364]
[1645396447601,0.78882477,2619.3,2619.2,1.86928454]
[1645396449246,0.78882477,2619.3,2619.2,1.86940353]
[1645396449446,0.78882477,2619.3,2619.2,0.2468507]
[1645396451856,0.78882477,2619.3,2619.2,1.86939195]
[1645396452451,0.84342594,2619.3,2619.2,1.86939195]
[1645396452650,0.84342594,2619.3,2619.2,1.86939156]
[1645396462198,0.84342594,2619.3,2619.2,0.2468507]
[1645396462399,0.84342594,2619.3,2619.2,1.86933891]
[1645396469889,0.84342594,2619.3,2619.2,1.86846813]
[1645396472747,0.84342594,2619.3,2619.2,1.86951409]
[1645396481554,0.84342594,2619.3,2619.2,0.24702588]
[1645396482350,0.84342594,2619.3,2619.2,1.86954313]
[1645396487250,0.84342594,2619.3,2619.2,0.24702588]
[1645396488151,0.84342594,2619.3,2619.2,1.86955122]
[1645396488349,0.84342594,2619.3,2619.2,0.24702588]
[1645396490524,0.84342594,2619.3,2619.2,1.86956364]
[1645396490705,0.84342594,2619.3,2619.2,0.24702588]
[1645396491104,0.84342594,2619.3,2619.2,1.86955855]
[1645396491511,0.84342594,2619.3,2619.2,1.8682278]
[1645396492509,0.84342594,2619.3,2619.2,1.86910167]
[1645396495341,0.84342594,2619.3,2619.2,2.16910167]
[1645396499614,0.84342594,2619.3,2619.2,1.86910167]
[1645396501310,0.84342594,2619.3,2619.2,2.16910167]
[1645396502848,0.84342594,2619.3,2619.2,1.86910167]
[1645396511651,0.84342594,2619.3,2619.2,1.86258329]
[1645396512655,0.84342594,2619.3,2619.2,1.86465029]
[1645396517671,0.84342594,2619.3,2619.2,1.86819231]
[1645396529099,0.79342594,2619.3,2619.2,1.86819231]
[1645396541246,0.79342594,2619.3,2619.2,0.2361607]
[1645396542648,0.79342594,2619.3,2619.2,0.24309355]
[1645396549951,0.79342594,2619.3,2619.2,0.2361607]
[1645396552609,0.79342594,2619.3,2619.2,0.24350413]
[1645396557550,0.79342594,2619.3,2619.2,0.24017233]
[1645396562548,0.79342594,2619.3,2619.2,0.2361607]
[1645396565496,0.79342594,2619.3,2619.2,0.23493252]
[1645396567899,1.76537952,2619.3,2619.2,0.23493252]
[1645396568102,0.79342594,2619.3,2619.2,0.23493252]
[1645396569749,1.76537952,2619.3,2619.2,0.23493252]
[1645396570149,0.79342594,2619.3,2619.2,0.23493252]
[1645396570749,1.76537952,2619.3,2619.2,0.23493252]
[1645396570950,0.79342594,2619.3,2619.2,0.23493252]
[1645396572550,0.66947315,2619.3,2619.2,0.23891189]
[1645396587151,1.64142673,2619.3,2619.2,0.23891189]
[1645396589003,0.66947315,2619.3,2619.2,0.23732719]
[1645396589201,1.64142673,2619.3,2619.2,0.23732719]
[1645396589406,0.66947315,2619.3,2619.2,0.23732719]
[1645396589603,1.64142673,2619.3,2619.2,0.23732719]
[1645396589803,0.66947315,2619.3,2619.2,0.23732719]
[1645396591207,1.64142673,2619.3,2619.2,0.23732719]
[1645396591854,0.66947315,2619.3,2619.2,0.23732719]
[1645396592053,1.64142673,2619.3,2619.2,0.23732719]
[1645396594954,0.66947315,2619.3,2619.2,0.23732719]
[1645396596003,1.64142673,2619.3,2619.2,0.23732719]
[1645396596708,0.66947315,2619.3,2619.2,0.23732719]
[1645396597505,1.64142673,2619.3,2619.2,0.23732719]
[1645396597705,0.66947315,2619.3,2619.2,0.23732719]
[1645396597908,1.64142673,2619.3,2619.2,0.23732719]
[1645396598907,0.66947315,2619.3,2619.2,0.23732719]
[1645396601056,1.64142673,2619.3,2619.2,0.23732719]
[1645396602158,0.66947315,2619.3,2619.2,0.23732719]
[1645396604701,1.64142673,2619.3,2619.2,0.23732719]
[1645396605301,0.66947315,2619.3,2619.2,0.23732719]
[1645396605503,1.64142673,2619.3,2619.2,0.23732719]
[1645396606302,0.66947315,2619.3,2619.2,0.23732719]
[1645396608553,1.64142673,2619.3,2619.2,0.23732719]
[1645396611212,0.66947315,2619.3,2619.2,0.23732719]
[1645396612210,0.66947315,2619.3,2619.2,0.23575107]
[1645396614652,1.64142673,2619.3,2619.2,0.23575107]
[1645396616955,1.64142673,2619.3,2619.2,0.18575107]
[1645396618018,0.66947315,2619.3,2619.2,0.18575107]
[1645396618417,1.64142673,2619.3,2619.2,0.18575107]
[1645396619020,0.66947315,2619.3,2619.2,0.18575107]
[1645396619719,1.64142673,2619.3,2619.2,0.18575107]
[1645396620117,0.66947315,2619.3,2619.2,0.18575107]
[1645396620719,1.64142673,2619.3,2619.2,0.18575107]
[1645396630264,0.66947315,2619.3,2619.2,0.18575107]
[1645396630866,1.64253454,2619.3,2619.2,0.18575107]
[1645396631863,0.66947315,2619.3,2619.2,0.18575107]
[1645396632467,1.6425064,2619.3,2619.2,0.18575107]
[1645396632670,1.6425064,2619.3,2619.2,0.191952]
[1645396632671,0.66947315,2619.3,2619.2,0.191952]
[1645396633101,1.64250832,2619.3,2619.2,0.191952]
[1645396633700,0.66947315,2619.3,2619.2,0.191952]
[1645396634305,1.64248469,2619.3,2619.2,0.191952]
[1645396634502,0.66947315,2619.3,2619.2,0.191952]
[1645396634700,1.64248553,2619.3,2619.2,0.191952]
[1645396634901,0.66947315,2619.3,2619.2,0.191952]
[1645396636203,1.64241878,2619.3,2619.2,0.191952]
[1645396636602,0.66947315,2619.3,2619.2,0.191952]
[1645396637363,1.64241878,2619.3,2619.2,0.191952]
[1645396638567,1.64241878,2619.3,2619.2,0.19036903]
[1645396639265,0.66947315,2619.3,2619.2,0.19036903]
[1645396639667,1.64241878,2619.3,2619.2,0.19036903]
[1645396639868,0.66947315,2619.3,2619.2,0.19036903]
[1645396640066,1.64241878,2619.3,2619.2,0.19036903]
[1645396640511,0.66947315,2619.3,2619.2,0.19036903]
[1645396640713,1.64241878,2619.3,2619.2,0.19036903]
[1645396646056,0.66947315,2619.3,2619.2,0.19036903]
[1645396647556,1.64241878,2619.3,2619.2,0.19036903]
[1645396650010,0.66947315,2619.3,2619.2,0.19036903]
[1645396651861,1.64241878,2619.3,2619.2,0.19036903]
[1645396653257,0.66947315,2619.3,2619.2,0.19036903]
[1645396656404,1.64241878,2619.3,2619.2,0.19036903]
[1645396659359,0.66947315,2619.3,2619.2,0.19036903]
[1645396660463,0.66947315,2619.3,2619.2,0.04036903]
[1645396667462,0.66853485,2619.3,2619.2,0.04036903]
[1645396677069,0.66853485,2619.3,2619.2,1.66291249]
[1645396677567,0.66853485,2619.3,2619.2,0.04036903]
[1645396690877,0.66853485,2619.3,2619.2,0.03919909]
[1645396693121,0.66853485,2619.3,2619.2,0.03485436]
[1645396694222,1.64148048,2619.3,2619.2,0.03485436]
[1645396695318,0.66853485,2619.3,2619.2,0.03485436]
[1645396695521,1.64148048,2619.3,2619.2,0.03485436]
[1645396696220,0.66853485,2619.3,2619.2,0.03485436]
[1645396696419,1.64148048,2619.3,2619.2,0.03485436]
[1645396696619,0.66853485,2619.3,2619.2,0.03485436]
[1645396696877,0.6673678,2619.3,2619.2,0.03485436]
[1645396698669,0.6673678,2619.3,2618.7,8.56226365]
[1645396698870,0.6673678,2619.3,2618.8,1.62270444]
[1645396699071,0.6673678,2619.3,2618.8,5.12270444]
[1645396699272,0.6673678,2619.3,2618.9,1.62270444]
[1645396699474,0.6673678,2619.3,2618.7,8.56226365]
[1645396699672,0.6673678,2619.3,2618.8,1.62270013]
[1645396702209,0.6673678,2619.3,2618.9,0.00154907]
[1645396702406,0.6673678,2619.3,2618.9,1.6242492]
[1645396702606,0.6673678,2619.3,2619.0,0.01071191]
[1645396703406,0.6673678,2619.3,2619.0,0.01226092]
[1645396704272,0.6673678,2619.3,2619.0,0.01071191]
[1645396704478,0.6673678,2619.3,2619.0,0.01226092]
[1645396705474,0.6673678,2619.3,2619.0,0.01071191]
[1645396705675,0.6673678,2619.3,2619.0,0.01226092]
[1645396706278,0.6673678,2619.3,2619.1,1.62263635]
[1645396706475,0.6673678,2619.3,2619.2,8.6587]
[1645396707477,0.6673678,2619.3,2619.2,8.67256262]
[1645396712163,0.6673678,2619.3,2619.2,0.01070696]
[1645396712362,0.6673678,2619.3,2618.8,0.55077512]
[1645396712570,0.6673678,2619.3,2619.2,0.01730615]
[1645396717624,0.6673678,2619.3,2619.2,0.01411331]
[1645396719464,1.94031343,2619.3,2619.2,0.01411331]
[1645396720665,0.9673678,2619.3,2619.2,0.01411331]
[1645396722068,1.94031343,2619.3,2619.2,0.01411331]
[1645396722666,1.94031343,2619.3,2619.2,0.01070696]
[1645396722874,2.49331343,2619.3,2619.2,0.01070696]
[1645396723519,1.5203678,2619.3,2619.2,0.01070696]
[1645396724520,2.49331343,2619.3,2619.2,0.01070696]
[1645396725124,2.48638054,2619.3,2619.2,0.01070696]
[1645396727463,2.48638054,2619.3,2619.1,0.00305983]
[1645396727464,2.48638054,2619.3,2619.1,0.01323382]
[1645396727665,3.44176834,2619.3,2619.1,0.01323382]
[1645396727871,2.48638054,2619.3,2619.1,0.01323382]
[1645396728266,2.19331343,2619.3,2619.1,0.01323382]
[1645396728464,2.49331343,2619.3,2619.1,0.01323382]
[1645396730521,1.5203678,2619.3,2619.1,0.01323382]
[1645396732117,2.49331343,2619.3,2619.1,0.01323382]
[1645396732414,1.5203678,2619.3,2619.1,0.01323382]
[1645396733813,2.49331343,2619.3,2619.1,0.01323382]
[1645396734016,1.5203678,2619.3,2619.1,0.01323382]
[1645396734459,2.49331343,2619.3,2619.1,0.01323382]
[1645396735862,1.5203678,2619.3,2619.1,0.01323382]
[1645396738514,2.49331343,2619.3,2619.1,0.01323382]
[1645396739306,1.5203678,2619.3,2619.1,0.01323382]
[1645396740305,2.49331343,2619.3,2619.1,0.01323382]
[1645396740510,2.19331343,2619.3,2619.1,0.01323382]
[1645396740708,1.2203678,2619.3,2619.1,0.01323382]
[1645396743772,2.19331343,2619.3,2619.1,0.01323382]
[1645396748038,2.14331343,2619.3,2619.1,0.01323382]
[1645396751763,1.59031343,2619.2,2619.1,0.01323382]
[1645396751965,2.14331343,2619.2,2619.1,0.01323382]
[1645396755418,2.33411343,2619.2,2619.1,0.01323382]
[1645396756220,3.14331343,2619.2,2619.1,0.01323382]
[1645396760364,3.14331343,2619.2,2619.1,0.59876728]
[1645396760818,2.1703678,2619.2,2619.1,0.59876728]
[1645396761024,10.64300903,2619.2,2619.1,0.59876728]
[1645396761224,17.7711678,2619.2,2619.0,0.00469786]
[1645396761424,7.7181678,2619.1,2619.0,0.00469786]
[1645396761620,8.2711678,2619.1,2619.0,0.00469786]
[1645396761828,8.2711678,2619.1,2619.0,0.00315269]
[1645396761829,16.21676547,2619.1,2619.0,0.00315269]
[1645396762022,11.21676547,2619.1,2619.0,0.00315269]
[1645396763021,9.2711678,2619.1,2619.0,0.00315269]
[1645396763222,12.7711678,2619.1,2619.0,0.00315269]
[1645396764367,14.22706533,2619.1,2619.0,0.00315269]
[1645396764565,12.7711678,2619.1,2619.0,0.00315269]
[1645396765064,12.7711678,2619.1,2618.9,0.0015452]
[1645396765265,18.78330794,2619.0,2618.9,0.0015452]
[1645396765466,19.52710794,2619.0,2618.3,8.5789]
[1645396765665,0.6173678,2618.6,2618.3,8.5789]
[1645396765867,1.1703678,2618.5,2618.3,8.5789]
[1645396766069,0.6173678,2618.4,2618.3,8.5789]
[1645396766266,1.1703678,2618.4,2618.3,8.5789]
[1645396766871,1.4703678,2618.4,2618.3,8.5789]
[1645396767067,1.1703678,2618.4,2618.3,8.5789]
[1645396767368,1.4703678,2618.4,2618.3,8.5789]
[1645396770121,1.4703678,2618.4,2618.2,0.00154561]
[1645396770322,1.4703678,2618.4,2617.8,14.39564853]
[1645396770524,1.6611678,2618.4,2618.2,0.00154561]
[1645396771022,2.6611678,2618.4,2618.2,0.00154561]
[1645396771522,2.6611678,2618.4,2617.8,14.39564853]
[1645396771783,2.6611678,2618.4,2618.2,0.00154564]
[1645396772381,1.5733078,2618.3,2618.2,0.00154564]
[1645396772581,2.1263078,2618.3,2618.2,0.00809945]
[1645396772783,3.1263078,2618.3,2618.2,0.00655381]
[1645396773084,3.1263078,2618.3,2618.2,0.00809945]
[1645396773483,3.3171078,2618.3,2618.2,0.00809945]
[1645396773885,6.8171078,2618.3,2618.2,0.00655381]
[1645396774289,6.6263078,2618.3,2618.2,0.00655381]
[1645396776523,6.8171078,2618.3,2618.2,0.00655381]
[1645396777526,6.8171078,2618.3,2618.2,0.00940509]
[1645396777723,6.6263078,2618.3,2618.2,0.00940509]
[1645396782569,6.6263078,2618.3,2618.1,0.0173133]
[1645396783312,4.4173678,2618.2,2618.1,0.0173133]
[1645396783510,4.9703678,2618.2,2618.1,0.01576763]
[1645396783714,5.9703678,2618.2,2618.1,0.01731333]
[1645396784117,14.5711678,2618.2,2618.1,0.01731333]
[1645396784316,15.1114775,2618.2,2618.1,0.01731333]
[1645396784514,15.19759366,2618.2,2618.1,0.01731333]
[1645396784713,15.19759366,2618.2,2618.1,0.01576763]
[1645396784914,14.65728396,2618.2,2618.1,0.01576763]
[1645396785313,15.61347376,2618.2,2618.0,0.00154573]
[1645396785515,3.7205278,2618.1,2618.0,0.00154573]
[1645396785715,11.1835278,2618.1,2617.6,0.00618383]
[1645396785917,0.6173678,2617.9,2617.2,7.97351126]
[1645396786119,0.6173678,2617.7,2617.2,7.97351126]
[1645396786319,0.6173678,2617.5,2617.2,7.97351126]
[1645396786518,0.6173678,2617.3,2617.2,7.97351126]
[1645396786774,1.1703678,2617.3,2617.2,7.97351126]
[1645396786975,1.4703678,2617.3,2617.2,7.97351126]
[1645396787778,2.4265716,2617.3,2617.2,7.97351126]
[1645396787977,2.4265716,2617.3,2616.7,0.00185639]
[1645396787978,6.8828716,2617.3,2616.7,0.00185639]
[1645396788181,8.0771716,2617.3,2616.7,0.00185639]
[1645396788380,0.6173678,2617.0,2616.0,2.7771106]
[1645396788578,0.6173678,2616.8,2616.5,0.00185657]
[1645396788777,0.6173678,2616.7,2616.5,0.00185657]
[1645396788978,1.5737786,2616.7,2616.1,1.52576717]
[1645396789177,1.5737786,2616.7,2616.0,0.8032]
[1645396790625,1.5737786,2616.7,2615.9,15.7865]
[1645396790826,2.5737786,2616.7,2615.9,15.7865]
[1645396791226,1.5737786,2616.7,2615.9,15.7865]
[1645396792224,1.5737786,2616.7,2616.2,0.00153831]
[1645396792624,1.5737786,2616.7,2616.2,0.0134543]
[1645396793032,1.5737786,2616.7,2616.2,0.01191599]
[1645396793424,1.5737786,2616.7,2616.3,0.00153822]
[1645396794267,0.6173678,2616.5,2616.2,0.01191599]
[1645396794670,0.6173678,2616.5,2616.4,0.00153819]
[1645396795269,0.9173678,2616.5,2616.4,0.00153819]
[1645396795470,0.9173678,2616.5,2616.2,0.01191599]
[1645396795868,0.9173678,2616.5,2616.3,0.00153822]
[1645396796270,0.6173678,2616.5,2616.3,0.00153822]
[1645396796466,0.9173678,2616.5,2616.3,0.00153822]
[1645396796669,1.8738616,2616.5,2616.2,0.01191599]
[1645396796971,1.8738616,2616.5,2616.3,0.00153825]
[1645396797168,2.8738616,2616.5,2616.3,0.00153825]
[1645396797467,1.5738616,2616.5,2616.3,0.00153825]
[1645396797668,1.5738616,2616.5,2616.4,0.00849045]
[1645396798127,2.4268616,2616.5,2616.4,0.00849045]
[1645396801769,2.1268616,2616.5,2616.4,0.00849045]
[1645396801969,2.4268616,2616.5,2616.4,0.00849045]
[1645396802670,2.4268616,2616.5,2616.3,0.01451815]
[1645396803074,2.4268616,2616.5,2616.3,0.01605637]
[1645396803270,5.9268616,2616.5,2616.3,0.01605637]
[1645396803475,3.5,2616.4,2616.3,0.01605637]
[1645396803671,5.6703678,2616.4,2616.3,0.01605637]
[1645396803872,4.6703678,2616.4,2616.3,0.01451815]
[1645396804072,2.1703678,2616.4,2616.3,0.01451815]
[1645396804275,1.1703678,2616.4,2616.3,0.01451815]
[1645396804474,2.1703678,2616.4,2616.3,0.01451815]
[1645396804671,5.6703678,2616.4,2616.3,0.01451815]
[1645396804872,2.1703678,2616.4,2616.3,0.01451815]
[1645396805079,4.6703678,2616.4,2616.3,0.01451815]
[1645396805273,5.8613678,2616.4,2616.3,0.01451815]
[1645396807522,5.6703678,2616.4,2616.3,0.01451815]
[1645396810873,2.1703678,2616.4,2616.3,0.01451815]
[1645396811074,4.6703678,2616.4,2616.3,0.01451815]
[1645396811280,2.1703678,2616.4,2616.3,0.01451815]
[1645396811475,5.6703678,2616.4,2616.3,0.01451815]
[1645396812176,5.8613678,2616.4,2616.3,0.01451815]
[1645396813129,5.6703678,2616.4,2616.3,0.01451815]
[1645396813728,5.94748396,2616.4,2616.3,0.01308079]
[1645396815931,5.8613678,2616.4,2616.3,0.01308079]
[1645396816329,5.6703678,2616.4,2616.3,0.01308079]
[1645396816777,5.9703678,2616.4,2616.2,0.00153828]
[1645396816980,5.9703678,2616.4,2615.9,8.3523]
[1645396816981,6.9874324,2616.3,2615.9,8.3523]
[1645396817178,0.6173678,2616.1,2615.9,8.3523]
[1645396817376,1.1703678,2616.0,2615.9,8.3523]
[1645396817782,2.1703678,2616.0,2615.9,8.3523]
[1645396818376,6.6271278,2616.0,2615.9,8.3523]
[1645396818576,3.1271278,2616.0,2615.9,8.3523]
[1645396819181,2.1271278,2616.0,2615.9,8.3523]
[1645396819377,6.6271278,2616.0,2615.9,8.3523]
[1645396819581,5.6271278,2616.0,2615.9,8.3523]
[1645396819777,6.6271278,2616.0,2615.9,8.3523]
[1645396820625,2.1271278,2616.0,2615.9,8.3523]
[1645396822026,2.4271278,2616.0,2615.9,8.3523]
[1645396822626,2.4271278,2616.0,2615.9,8.36297279]
[1645396822826,5.9271278,2616.0,2615.9,8.36297279]
[1645396823125,2.4271278,2616.0,2615.9,8.36297279]
[1645396823427,6.9271278,2616.0,2615.9,8.36297279]
[1645396824282,7.1181278,2616.0,2615.9,8.36297279]
[1645396827189,6.9271278,2616.0,2615.9,8.36297279]
[1645396831880,3.4271278,2616.0,2615.9,8.36297279]
[1645396833481,7.89769028,2616.0,2615.9,8.36297279]
[1645396833879,6.9271278,2616.0,2615.9,8.36297279]
[1645396835927,7.89621208,2616.0,2615.9,8.36297279]
[1645396836526,6.9271278,2616.0,2615.9,8.36297279]
[1645396836725,7.89619782,2616.0,2615.9,8.36297279]
[1645396837326,6.9271278,2616.0,2615.9,8.35987279]
[1645396837526,7.89622043,2616.0,2615.9,8.35987279]
[1645396837730,7.8962252,2616.0,2615.9,8.36312085]
[1645396837926,6.9271278,2616.0,2615.9,8.36312085]
[1645396838528,0.6173678,2615.7,2615.4,0.00475819]
[1645396838726,0.6173678,2615.7,2615.1,6.96428989]
[1645396838727,0.6173678,2615.4,2615.1,6.96428989]
[1645396840389,1.6173678,2615.4,2615.1,6.96428989]
[1645396840587,0.6173678,2615.4,2615.1,6.96428989]
[1645396840785,0.6173678,2615.4,2615.1,6.81428989]
[1645396841386,0.553,2615.3,2615.1,6.81428989]
[1645396841587,0.6173678,2615.2,2615.1,6.81428989]
[1645396841987,0.6173678,2615.1,2615.0,0.001]
[1645396847280,0.9173678,2615.1,2615.0,0.001]
[1645396847482,0.9173678,2615.1,2615.0,0.0077693]
[1645396849482,0.9173678,2615.1,2614.5,5.25029861]
[1645396849683,0.9173678,2615.1,2614.5,5.20029861]
[1645396849883,0.9173678,2615.1,2614.9,0.00126504]
[1645396850831,0.9173678,2615.1,2614.5,5.20029861]
[1645396852334,0.9173678,2615.1,2614.5,5.15154316]
[1645396852528,0.9173678,2615.1,2615.0,0.00637137]
[1645396855675,0.6173678,2615.1,2615.0,0.00637137]
[1645396857076,0.9173678,2615.1,2615.0,0.00637137]
[1645396857781,0.9173678,2615.1,2614.9,0.01202091]
[1645396862080,0.9173678,2615.1,2614.5,5.12377302]
[1645396862282,0.9173678,2615.1,2614.6,1.62521955]
[1645396862692,0.9173678,2615.1,2615.0,0.00637137]
[1645396864785,0.9173678,2615.1,2614.5,5.08121153]
[1645396865185,0.9173678,2615.1,2614.5,5.07968914]
[1645396865535,0.9173678,2615.1,2614.6,1.62522322]
[1645396866735,0.9173678,2615.1,2614.5,5.08121153]
[1645396867635,0.9173678,2615.1,2614.7,0.00843827]
[1645396868535,0.9173678,2615.1,2614.7,3.80843827]
[1645396872587,0.08792362,2615.0,2614.7,3.8]
[1645396879188,1.04488802,2615.0,2614.7,3.8]
[1645396879390,0.6173678,2614.9,2614.7,3.8]
[1645396879587,0.9173678,2614.9,2614.7,3.8]
[1645396882432,0.08812213,2614.8,2614.7,3.8]
[1645396886686,0.08812213,2614.8,2614.7,5.42525651]